[Event "Srdja Dragasevic Memorial-A 2024"]
[Site "Cetinje"]
[Date "2024.06.28"]
[Round "8.15"]
[White "Miletic, Vuk"]
[Black "Ivanovic, Bozidar"]
[Result "1/2-1/2"]
[ECO "A43"]
[WhiteElo "2193"]
[BlackElo "2371"]
[Annotator "RC"]
[PlyCount "104"]
[EventDate "2024.06.23"]
[EventType "swiss"]
[EventCountry "MNE"]
[SourceTitle "playchess.com"]
[Source "ChessBase"]
[SourceQuality "1"]
[TimeControl "40/5400+30:1800+30"]

1. d4 {[%emt 0:00:29]} Nf6 {[%emt 0:00:44]} 2. Nf3 {[%emt 0:00:37]} c5 {[%emt 0:00:35]} 3. d5 {[%emt 0:00:36]} e6 {[%emt 0:01:46]} 4. Nc3 {[%emt 0:00:46]} exd5 {[%emt 0:05:58]} 5. Nxd5 {[%emt 0:00:23]} Nc6 {[%emt 0:01:38]} 6. e4 {[%emt 0:27:10]} d6 {[%emt 0:06:23]} 7. c3 {[%emt 0:14:02]} Be7 {[%emt 0:03:11]} 8. Bc4 {[%emt 0:07:24]} O-O {[%emt 0:03:21]} 9. Nxf6+ {[%emt 0:03:31]} Bxf6 {[%emt 0:00:10]} 10. O-O {[%emt 0:00:26]} Re8 {[%emt 0:26:48]} 11. Qd3 {[%emt 0:02:53]} Qe7 {[%emt 0:06:14]} 12. Bd5 {[%emt 0:05:44]} Be6 {[%emt 0:03:52]} 13. Bf4 {[%emt 0:07:46]} Rad8 {[%emt 0:14:41]} 14. Rfe1 {[%emt 0:04:49]} Be5 {[%emt 0:07:28]} 15. Bg5 {[%emt 0:06:33]} f6 {[%emt 0:03:17]} 16. Be3 {[%emt 0:00:47]} Qf7 {[%emt 0:01:04]} 17. Nd2 {[%emt 0:05:40]} g5 {[%emt 0:02:52]} 18. Nc4 {[%emt 0:01:52]} Kg7 {[%emt 0:04:07]} 19. g3 {[%emt 0:04:15]} g4 {[%emt 0:00:22]} 20. Rad1 {[%emt 0:00:50]} b5 {[%emt 0:00:35]} 21. Bxc6 {[%emt 0:01:55]} Bxc4 {[%emt 0:00:19]} 22. Qd2 {[%emt 0:00:06]} Re7 {[%emt 0:03:21]} 23. b3 {[%emt 0:00:50]} Be6 {[%emt 0:00:54]} 24. Bxb5 {[%emt 0:00:24]} Rb8 {[%emt 0:00:41]} 25. Bf1 {[%emt 0:02:09]} h5 {[%emt 0:00:56]} 26. Bf4 {[%emt 0:00:33]} Rb6 {[%emt 0:02:13]} 27. Bg2 {[%emt 0:00:44]} a5 {[%emt 0:00:00]} 28. Bxe5 {[%emt 0:00:27]} dxe5 {[%emt 0:00:00]} 29. Qd8 {[%emt 0:00:26]} Reb7 {[%emt 0:00:08]} 30. Rd2 {[%emt 0:00:48]} Rb8 {[%emt 0:00:25]} 31. Qd3 {[%emt 0:00:11]} c4 {[%emt 0:00:10]} 32. bxc4 {[%emt 0:00:18]} Bxc4 {[%emt 0:00:02]} 33. Qe3 {[%emt 0:00:59]} Bxa2 {[%emt 0:00:23]} 34. f4 {[%emt 0:00:35]} Rb1 {[%emt 0:00:30]} 35. fxe5 {[%emt 0:00:28]} Rxe1+ {[%emt 0:01:08]} 36. Qxe1 {[%emt 0:00:00]} Rb1 {[%emt 0:00:26]} 37. Rd1 {[%emt 0:00:51]} Qb3 {[%emt 0:00:12]} 38. exf6+ {[%emt 0:00:08]} Kf7 {[%emt 0:01:44]} 39. Rxb1 {[%emt 0:00:52]} Qxb1 {[%emt 0:00:01]} 40. Qxb1 {[%emt 0:00:00]} Bxb1 {[%emt 0:00:00]} 41. e5 {[%emt 0:01:17]} Ba2 {[%emt 0:01:23]} 42. Kf2 {[%emt 0:14:51]} Ke6 {[%emt 0:00:44]} 43. f7 {[%emt 0:07:05]} Kxf7 {[%emt 0:06:57]} 44. Ke3 {[%emt 0:00:39]} a4 {[%emt 0:00:11]} 45. Kd2 {[%emt 0:04:03]} a3 {[%emt 0:00:25]} 46. Kc2 {[%emt 0:03:14]} Ke6 {[%emt 0:08:58]} 47. Be4 {[%emt 0:00:24]} Kxe5 {[%emt 0:00:34]} 48. Bg6 {[%emt 0:00:06]} h4 {[%emt 0:00:23]} 49. gxh4 {[%emt 0:00:18]} Bc4 {[%emt 0:00:14]} 50. Kb1 {[%emt 0:01:01]} Kf4 {[%emt 0:00:36]} 51. Bh5 {[%emt 0:02:33]} g3 {[%emt 0:01:02]} 52. hxg3+ {[%emt 0:00:06]} Kxg3 {[%emt 0:16:24]} 1/2-1/2

[Event "Srdja Dragasevic Memorial-A 2024"]
[Site "Cetinje"]
[Date "2024.06.28"]
[Round "8.16"]
[White "Holland, James P"]
[Black "Levi, Netanel"]
[Result "0-1"]
[ECO "A46"]
[WhiteElo "2252"]
[BlackElo "2152"]
[Annotator "RC"]
[PlyCount "88"]
[EventDate "2024.06.23"]
[EventType "swiss"]
[EventCountry "MNE"]
[SourceTitle "playchess.com"]
[Source "ChessBase"]
[SourceQuality "1"]
[TimeControl "40/5400+30:1800+30"]

1. d4 {[%emt 0:00:04]} Nf6 {[%emt 0:01:10]} 2. Nf3 {[%emt 0:00:09]} e6 {[%emt 0:01:28]} 3. g3 {[%emt 0:06:47]} b5 {[%emt 0:00:06]} 4. Qd3 {[%emt 0:01:59]} b4 {[%emt 0:05:29]} 5. a3 {[%emt 0:02:33]} c5 {[%emt 0:03:03]} 6. Bg2 {[%emt 0:01:33]} Bb7 {[%emt 0:03:14]} 7. O-O {[%emt 0:04:40]} Be4 {[%emt 0:03:56]} 8. Qd1 {[%emt 0:00:43]} cxd4 {[%emt 0:04:05]} 9. Nbd2 {[%emt 0:03:52]} Bb7 {[%emt 0:02:09]} 10. axb4 {[%emt 0:01:39]} Bxb4 {[%emt 0:00:34]} 11. Ra4 {[%emt 0:06:42]} Be7 {[%emt 0:03:37]} 12. Nb3 {[%emt 0:01:16]} O-O {[%emt 0:02:13]} 13. Na5 {[%emt 0:00:44]} Be4 {[%emt 0:01:02]} 14. Nxd4 {[%emt 0:05:02]} Bxg2 {[%emt 0:01:43]} 15. Kxg2 {[%emt 0:00:05]} Qc7 {[%emt 0:05:06]} 16. Bf4 {[%emt 0:10:10]} e5 {[%emt 0:02:50]} 17. Nf5 {[%emt 0:00:38]} Bd8 {[%emt 0:11:45]} 18. Bg5 {[%emt 0:03:10]} Nc6 {[%emt 0:03:35]} 19. Bxf6 Bxf6 {[%emt 0:00:47]} 20. Nc4 {[%emt 0:06:55]} Nd4 {[%emt 0:05:40]} 21. Nxd4 exd4 {[%emt 0:00:13]} 22. b3 {[%emt 0:04:44]} d5 {[%emt 0:00:28]} 23. Nd2 {[%emt 0:00:42]} Rac8 {[%emt 0:01:32]} 24. Ra2 {[%emt 0:00:49]} Rfe8 {[%emt 0:00:41]} 25. Re1 {[%emt 0:02:53]} h5 {[%emt 0:00:53]} 26. h4 {[%emt 0:01:20]} Qb6 {[%emt 0:07:06]} 27. Nf3 {[%emt 0:03:33]} Rc3 {[%emt 0:01:56]} 28. Qd2 {[%emt 0:02:42]} Re4 {[%emt 0:07:12]} 29. Ra4 {[%emt 0:12:28]} Qc5 {[%emt 0:02:47]} 30. b4 {[%emt 0:00:35]} Qc7 {[%emt 0:02:36]} 31. b5 {[%emt 0:01:28]} d3 {[%emt 0:05:43]} 32. Ra2 {[%emt 0:01:57]} Rxc2 {[%emt 0:03:07]} 33. Rxc2 {[%emt 0:00:24]} dxc2 {[%emt 0:00:02]} 34. Rc1 {[%emt 0:01:22]} Rc4 {[%emt 0:00:17]} 35. Qe3 {[%emt 0:04:50]} Bb2 {[%emt 0:04:33]} 36. Qe8+ {[%emt 0:00:22]} Kh7 {[%emt 0:00:01]} 37. Ng5+ {[%emt 0:00:15]} Kg6 {[%emt 0:00:32]} 38. Ne6 {[%emt 0:00:04]} Bxc1 {[%emt 0:04:31]} 39. Nxc7 {[%emt 0:00:35]} Rxc7 {[%emt 0:00:02]} 40. g4 {[%emt 0:00:00]} Bf4 {[%emt 0:00:00]} 41. gxh5+ {[%emt 0:02:55]} Kxh5 {[%emt 0:01:18]} 42. Qh8+ {[%emt 0:00:56]} Bh6 {[%emt 0:01:16]} 43. Qd8 {[%emt 0:01:21]} c1=Q {[%emt 0:00:33]} 44. Qxd5+ {[%emt 0:00:07]} Kxh4 {[%emt 0:00:16]} 0-1

[Event "Srdja Dragasevic Memorial-A 2024"]
[Site "Cetinje"]
[Date "2024.06.28"]
[Round "8.17"]
[White "Slugin, Alexander"]
[Black "Nikolic, Nebojsa"]
[Result "1/2-1/2"]
[ECO "A05"]
[WhiteElo "2157"]
[BlackElo "2268"]
[Annotator "RC"]
[PlyCount "77"]
[EventDate "2024.06.23"]
[EventType "swiss"]
[EventCountry "MNE"]
[SourceTitle "playchess.com"]
[Source "ChessBase"]
[SourceQuality "1"]
[TimeControl "40/5400+30:1800+30"]

1. Nf3 {[%emt 0:14:46]} c5 {[%emt 0:00:11]} 2. b3 {[%emt 0:00:26]} Nf6 {[%emt 0:03:00]} 3. Bb2 {[%emt 0:00:07]} g6 {[%emt 0:01:16]} 4. Bxf6 {[%emt 0:00:19]} exf6 {[%emt 0:00:06]} 5. c4 {[%emt 0:00:01]} d5 {[%emt 0:01:09]} 6. cxd5 {[%emt 0:01:30]} Qxd5 {[%emt 0:00:16]} 7. Nc3 {[%emt 0:00:11]} Qd8 {[%emt 0:01:27]} 8. e3 {[%emt 0:00:29]} a6 {[%emt 0:02:43]} 9. Rc1 {[%emt 0:00:39]} b6 {[%emt 0:07:38]} 10. Be2 {[%emt 0:01:00]} Bb7 {[%emt 0:01:20]} 11. O-O {[%emt 0:00:12]} Nd7 {[%emt 0:07:08]} 12. d4 {[%emt 0:00:11]} Rc8 {[%emt 0:03:38]} 13. Bd3 {[%emt 0:03:41]} Be7 {[%emt 0:11:42]} 14. Qe2 {[%emt 0:04:25]} b5 {[%emt 0:01:12]} 15. Rfd1 {[%emt 0:00:19]} cxd4 {[%emt 0:02:08]} 16. Nxd4 {[%emt 0:02:29]} Qa5 {[%emt 0:02:43]} 17. Be4 {[%emt 0:00:30]} Rxc3 {[%emt 0:12:56]} 18. Bxb7 {[%emt 0:00:40]} Rxc1 {[%emt 0:02:53]} 19. Rxc1 {[%emt 0:00:21]} O-O {[%emt 0:00:08]} 20. Nc6 {[%emt 0:01:16]} Qa3 {[%emt 0:00:08]} 21. Nxe7+ Qxe7 {[%emt 0:00:07]} 22. Bxa6 {[%emt 0:01:41]} Qa3 {[%emt 0:01:45]} 23. Rd1 {[%emt 0:00:16]} Qxa6 {[%emt 0:00:44]} 24. Rxd7 {[%emt 0:00:08]} Ra8 {[%emt 0:02:04]} 25. Rd2 {[%emt 0:06:38]} Qa5 {[%emt 0:00:47]} 26. h4 {[%emt 0:00:18]} h5 {[%emt 0:00:08]} 27. g3 {[%emt 0:01:35]} Kg7 {[%emt 0:00:38]} 28. Qd1 {[%emt 0:00:57]} Qb4 {[%emt 0:05:32]} 29. Qc2 {[%emt 0:02:05]} Rc8 {[%emt 0:01:04]} 30. Qb2 {[%emt 0:00:20]} Rc3 {[%emt 0:02:36]} 31. Rd5 {[%emt 0:01:48]} Rc5 {[%emt 0:05:42]} 32. Qd2 {[%emt 0:00:27]} Qa3 {[%emt 0:00:05]} 33. Rd7 {[%emt 0:04:26]} Qa8 {[%emt 0:02:07]} 34. Rxf7+ {[%emt 0:05:33]} Kxf7 {[%emt 0:00:33]} 35. Qd7+ {[%emt 0:00:11]} Kg8 {[%emt 0:00:24]} 36. Qe6+ {[%emt 0:00:09]} Kh8 {[%emt 0:01:24]} 37. Qxf6+ {[%emt 0:00:12]} Kg8 {[%emt 0:00:07]} 38. Qxg6+ {[%emt 0:00:12]} Kh8 {[%emt 0:00:06]} 39. Qh6+ {[%emt 0:49:32]} 1/2-1/2

[Event "Srdja Dragasevic Memorial-A 2024"]
[Site "Cetinje"]
[Date "2024.06.28"]
[Round "8.18"]
[White "Pusara, Mihailo"]
[Black "Kolmakov, Ivan D."]
[Result "1/2-1/2"]
[ECO "C18"]
[WhiteElo "2117"]
[BlackElo "1902"]
[Annotator "NA RC"]
[PlyCount "30"]
[EventDate "2024.06.23"]
[EventType "swiss"]
[EventCountry "MNE"]
[SourceTitle "playchess.com"]
[Source "ChessBase"]
[SourceQuality "1"]
[TimeControl "40/5400+30:1800+30"]

1. e4 {[%emt 0:02:16]} e6 {[%emt 0:00:07]} 2. d4 {[%emt 0:00:05]} d5 {[%emt 0:00:06]} 3. Nc3 {[%emt 0:00:05]} Bb4 {[%emt 0:00:06]} 4. e5 {[%emt 0:00:05]} Ne7 {[%emt 0:00:09]} 5. a3 {[%emt 0:00:06]} Bxc3+ $11 {[%emt 0:00:06]} 6. bxc3 {[%emt 0:00:03]} c5 {[%emt 0:00:07]} 7. Qg4 {[%emt 0:00:05]} cxd4 {[%emt 0:00:10]} 8. cxd4 {[%emt 0:06:09]} Qc7 {[%emt 0:00:19]} 9. Kd1 {[%emt 0:05:32]} Nbc6 {[%emt 0:09:35]} 10. Nf3 {[%emt 0:02:20]} h5 {[%emt 0:02:54]} 11. Qxg7 {[%emt 0:02:06]} Rg8 {[%emt 0:00:18]} 12. Qh7 {[%emt 0:00:18]} Bd7 {[%emt 0:12:03]} 13. Be3 {[%emt 0:06:55]} O-O-O {[%emt 0:05:03]} 14. Qxf7 {[%emt 0:08:28]} Nf5 {[%emt 0:39:04]} 15. Bd3 {[%emt 0:09:16]} Nce7 {[%emt 0:04:26]} 1/2-1/2